fUST/lending_fUST_20240821
["ID","MTS","AMOUNT","RATE_DAILY","PERIOD"]
[335402604,1724193041405,-153.0,0.00034678,2]
[335402606,1724193041415,-153.0,0.00034678,2]
[335402608,1724193041425,-153.0,0.00034681,2]
[335402610,1724193041434,-153.0,0.00034681,2]
[335402612,1724193041444,-157.811681,0.00034703,2]
[335402614,1724193041453,-153.0,0.00034719,2]
[335402616,1724193041463,-153.0,0.00034719,2]
[335402618,1724193041473,-153.0,0.00034723,2]
[335402620,1724193041483,-153.0,0.00034723,2]
[335402622,1724193041492,-153.0,0.00034761,2]
[335402624,1724193041501,-153.0,0.00034761,2]
[335402626,1724193041511,-153.0,0.00034764,2]
[335402629,1724193041522,-1401.72,0.000348,31]
[335402631,1724193041532,-1401.72,0.000348,31]
[335402633,1724193041541,-1401.72,0.000348,31]
[335402635,1724193041550,-1401.72,0.000348,31]
[335402637,1724193041561,-1401.72,0.000348,31]
[335402639,1724193041570,-1401.72,0.000348,31]
[335402641,1724193041580,-1401.72,0.000348,31]
[335402643,1724193041589,-1401.72,0.000348,31]
[335402645,1724193041599,-1401.72,0.000348,31]
[335402647,1724193041610,-1401.72,0.000348,31]
[335402649,1724193041619,-1401.72,0.000348,31]
[335402651,1724193041631,-1401.72,0.000348,31]
[335402654,1724193041641,-1401.72,0.000348,31]
[335402656,1724193041651,-1401.72,0.000348,31]
[335402658,1724193041662,-1401.72,0.000348,31]
[335402660,1724193041672,-1401.72,0.000348,31]
[335402662,1724193041682,-151.0,0.00034831,7]
[335402664,1724193041691,-151.0,0.00034831,7]
[335402666,1724193041701,-660.84079653,0.0003493,2]
[335402668,1724193041710,-154.60575532,0.00034931,4]
[335402670,1724193041720,-1000.0,0.00034931,21]
[335402672,1724193041730,-500.0,0.00034931,21]
[335402674,1724193041741,-566.16409179,0.00034931,21]
[335402676,1724193041751,-500.0,0.00034931,21]
[335402678,1724193041762,-500.0,0.00034931,21]
[335402680,1724193041771,-349.11158065,0.00034931,21]
[335402682,1724193041780,-500.0,0.00034931,21]
[335402684,1724193041790,-500.0,0.00034931,21]
[335402686,1724193041799,-516.80386997,0.00034931,21]
[335402688,1724193041808,-500.0,0.00034931,21]
[335402690,1724193041818,-500.0,0.00034931,21]
[335402692,1724193041828,-500.0,0.00034931,21]
[335402694,1724193041837,-500.0,0.00034931,21]
[335402696,1724193041847,-500.0,0.00034931,21]
[335402699,1724193041857,-500.0,0.00034931,21]
[335402701,1724193041867,-500.0,0.00034931,21]
[335402703,1724193041876,-500.0,0.00034931,21]
[335402705,1724193041886,-500.0,0.00034931,21]
[335402707,1724193041895,-500.0,0.00034931,21]
[335402709,1724193041905,-500.0,0.00034931,21]
[335402710,1724193041914,-242.82428367,0.00034931,21]
[335402712,1724193041924,-500.0,0.00034931,21]
[335402714,1724193041933,-500.0,0.00034931,21]
[335402717,1724193041944,-500.0,0.00034931,21]
[335402719,1724193041955,-395.68,0.00034931,21]
[335402721,1724193041965,-500.0,0.00034931,21]
[335402723,1724193041975,-512.8772363,0.00034931,21]
[335402725,1724193041986,-500.67615091,0.00034931,21]
[335402727,1724193041997,-500.0,0.00034931,21]
[335402729,1724193042006,-500.0,0.00034931,21]
[335402731,1724193042017,-500.41606555,0.00034931,21]
[335402733,1724193042026,-500.0,0.00034931,21]
[335402735,1724193042037,-153.02501592,0.00034931,21]
[335402738,1724193042048,-209.13324107,0.00034931,21]
[335402740,1724193042057,-571.72864269,0.00034931,21]
[335402742,1724193042067,-500.0,0.00034931,21]
[335402744,1724193042076,-500.0,0.00034931,21]
[335402746,1724193042086,-586.61584633,0.00034931,21]
[335402748,1724193042096,-500.0,0.00034931,21]
[335402750,1724193042105,-500.0,0.00034931,21]
[335402752,1724193042119,-500.0,0.00034931,21]
[335402754,1724193042128,-569.81,0.00034931,21]
[335402756,1724193042138,-500.0,0.00034931,21]
[335402758,1724193042148,-500.0,0.00034931,21]
[335402760,1724193042159,-500.0,0.00034931,21]
[335402762,1724193042169,-500.0,0.00034931,21]
[335402764,1724193042179,-500.0,0.00034931,21]
[335402766,1724193042189,-500.0,0.00034931,21]
[335402768,1724193042200,-624.34339839,0.00034931,21]
[335402770,1724193042210,-500.0,0.00034931,21]
[335402772,1724193042220,-219.1,0.00034931,21]
[335402774,1724193042229,-500.0,0.00034931,21]
[335402776,1724193042238,-500.0,0.00034931,21]
[335402778,1724193042248,-500.0,0.00034931,21]
[335402780,1724193042257,-500.0,0.00034931,21]
[335402782,1724193042267,-500.0,0.00034931,21]
[335402784,1724193042277,-483.20435339,0.00034931,21]
[335402786,1724193042286,-500.0,0.00034931,21]
[335402788,1724193042295,-500.0,0.00034931,21]
[335402790,1724193042305,-500.0,0.00034931,21]
[335402792,1724193042315,-500.0,0.00034931,21]
[335402794,1724193042324,-500.0,0.00034931,21]
[335402796,1724193042334,-500.0,0.00034931,21]
[335402799,1724193042344,-500.0,0.00034931,21]
[335402801,1724193042354,-500.0,0.00034931,21]
[335402803,1724193042363,-500.0,0.00034931,21]
[335402805,1724193042373,-500.0,0.00034931,21]
[335402807,1724193042383,-500.0,0.00034931,21]
[335402809,1724193042392,-500.0,0.00034931,21]
[335402811,1724193042401,-500.0,0.00034931,21]
[335402813,1724193042411,-500.0,0.00034931,21]
[335402815,1724193042421,-500.0,0.00034931,21]
[335402817,1724193042431,-234.270508,0.00034931,21]
[335402819,1724193042442,-500.0,0.00034931,21]
[335402821,1724193042453,-411.525,0.00034931,7]
[335402823,1724193042463,-500.0,0.00034931,21]
[335402825,1724193042472,-500.0,0.00034931,21]
[335402827,1724193042482,-411.525,0.00034931,7]
[335402829,1724193042492,-411.525,0.00034931,7]
[335402831,1724193042502,-476.81290132,0.00034931,21]
[335402834,1724193042513,-411.525,0.00034931,7]
[335402836,1724193042524,-411.525,0.00034931,7]
[335402838,1724193042534,-411.525,0.00034931,7]
[335402840,1724193042544,-411.525,0.00034931,7]
[335402842,1724193042554,-411.525,0.00034931,7]
[335402844,1724193042565,-411.525,0.00034931,7]
[335402846,1724193042575,-500.0,0.00034931,21]
[335402848,1724193042584,-411.525,0.00034931,7]
[335402850,1724193042594,-590.87130158,0.00034931,21]
[335402852,1724193042603,-500.0,0.00034931,20]
[335402854,1724193042613,-411.525,0.00034931,7]
[335402856,1724193042623,-500.0,0.00034931,20]
[335402858,1724193042632,-411.525,0.00034931,7]
[335402860,1724193042641,-411.525,0.00034931,7]
[335402862,1724193042652,-500.0,0.00034931,21]
[335402864,1724193042663,-500.0,0.00034931,21]
[335402866,1724193042672,-2000.0,0.00034931,2]
[335402868,1724193042682,-2000.0,0.00034931,2]
[335402870,1724193042691,-500.0,0.00034931,21]
[335402872,1724193042701,-500.0,0.00034931,21]
[335402875,1724193042710,-500.0,0.00034931,21]
[335402877,1724193042719,-632.16,0.00034931,21]
[335402879,1724193042728,-500.0,0.00034931,21]
[335402881,1724193042737,-632.30716329,0.00034931,21]
[335402883,1724193042747,-554.01,0.00034931,21]
[335402885,1724193042757,-500.0,0.00034931,21]
[335402887,1724193042767,-202.70449388,0.00034931,21]
[335402889,1724193042776,-500.0,0.00034931,21]
[335402891,1724193042785,-500.0,0.00034931,21]
[335402893,1724193042795,-500.0,0.00034931,21]
[335402895,1724193042804,-437.01,0.00034931,21]
[335402897,1724193042814,-500.0,0.00034931,21]
[335402899,1724193042823,-513.33769659,0.00034931,21]
[335402901,1724193042834,-500.0,0.00034931,21]
[335402903,1724193042843,-500.0,0.00034931,21]
[335402906,1724193042853,-500.0,0.00034931,21]
[335402908,1724193042863,-500.0,0.00034931,21]
[335402910,1724193042873,-500.0,0.00034931,21]
[335402913,1724193042883,-325.0689194,0.00034931,21]
[335402915,1724193042893,-500.0,0.00034931,21]
[335402917,1724193042904,-500.0,0.00034931,21]
[335402920,1724193042916,-355.16,0.00034931,21]
[335402922,1724193042928,-500.0,0.00034931,21]
[335402924,1724193042938,-500.0,0.00034931,21]
[335402935,1724193043032,-500.0,0.00034931,21]
[335402937,1724193043043,-500.0,0.00034931,21]
[335402939,1724193043053,-500.0,0.00034931,21]
[335402941,1724193043064,-481.2,0.00034931,21]
[335402943,1724193043073,-500.0,0.00034931,21]
[335402945,1724193043083,-412.65948596,0.00034931,21]
[335402966,1724193043457,-87.34051404,0.00034931,21]
[335402967,1724193043469,-500.0,0.00034931,21]
[335402970,1724193043482,-511.31,0.00034931,21]
[335402972,1724193043493,-500.0,0.00034931,21]
[335402974,1724193043505,-500.0,0.00034931,21]
[335402975,1724193043517,-500.0,0.00034931,21]
[335402976,1724193043529,-500.0,0.00034931,21]
[335402977,1724193043539,-440.71098131,0.00034931,21]
[335403006,1724193056331,41.23987819,0.00014247,2]
[335403007,1724193056357,128.82970081,0.00014247,2]
[335403009,1724193192429,200.0,0.0001,2]
[335403019,1724193954245,-154.76012181,0.00011046,2]
[335403020,1724193954266,-154.66746495,0.00011987,2]
[335403021,1724193954288,-186.98704903,0.00012121,2]
[335403022,1724193954309,-205.84223833,0.00013333,3]
[335403023,1724193954335,-165.188604,0.00014247,2]
[335403024,1724193954357,-200.0,0.00016438,2]
[335403025,1724193954379,-501.5162862,0.00016438,2]
[335403026,1724193955086,-44.20148116,0.00016438,2]
[335403027,1724193955108,-226.11908431,0.0002,2]
[335403028,1724193955130,-290.32883525,0.0002,2]
[335403029,1724193955152,-119.91516694,0.00021467,2]
[335403031,1724194035094,-226.11908431,0.0002,2]
[335403032,1724194035116,-19.61238844,0.00021467,2]
[335403033,1724194037089,-25.66104862,0.00021467,2]
[335403034,1724194037110,-151.0,0.0002208,2]
[335403035,1724194037132,-953.45396956,0.00023078,2]
[335403036,1724194037154,-154.60575532,0.00023086,2]
[335403037,1724194037174,-47.19264635,0.00023099,2]
[335403038,1724194039115,-382.7218516,0.00021467,2]
[335403039,1724194043098,-878.04570432,0.00021467,2]
[335403040,1724194043119,-835.76849916,0.00023099,2]
[335403041,1724194043141,-1222.78058342,0.00023099,2]
[335403042,1724194048136,-154.74467129,0.0002305,2]
[335403043,1724194048158,-9120.15640369,0.00023099,2]
[335403044,1724194048180,-287.15761358,0.00023194,2]
[335403045,1724194048202,-151.0,0.00023515,2]
[335403046,1724194048224,-68.10688931,0.00024087,2]
[335403047,1724194052110,-416.13084152,0.00024087,2]
[335403048,1724194146143,-309.18067122,0.00014519,2]
[335403080,1724194237189,220.204069,0.00014247,2]
[335403151,1724194240697,-220.204069,0.00020707,2]
[335403153,1724194240706,-309.12575041,0.00021367,2]
[335403155,1724194240717,-882.96114551,0.0002308,2]
[335403157,1724194240727,-251.0,0.00023241,2]
[335403159,1724194240737,-148.38389391,0.00024087,2]
[335403161,1724194240747,-1260.76755592,0.00024087,2]
[335403163,1724194240757,-126499.41497098,0.00024087,7]
[335403166,1724194240768,-226.11908431,0.00024087,2]
[335403168,1724194240779,-10511.84618177,0.00024087,2]
[335403170,1724194240790,-165.343809,0.00024341,2]
[335403172,1724194240799,-160.83387276,0.00024395,2]
[335403174,1724194240809,-151.0,0.00024951,2]
[335403176,1724194240819,-196.22601312,0.00025,2]
[335403178,1724194240829,-953.45396956,0.00025097,2]
[335403180,1724194240838,-154.60575532,0.00025097,2]
[335403182,1724194240848,-306.65686856,0.00025211,2]
[335403184,1724194240857,-156.4030076,0.00025758,2]
[335403186,1724194240867,-167.250998,0.00026267,2]
[335403188,1724194240877,-151.0,0.00026386,2]
[335403190,1724194240887,-154.96,0.000266,31]
[335403192,1724194240897,-154.96,0.000266,31]
[335403194,1724194240907,-154.96,0.000266,31]
[335403196,1724194240917,-10342.93698711,0.00026999,2]
[335403198,1724194240928,-172.0,0.00027,2]
[335403200,1724194240939,-220.204069,0.00027167,2]
[335403203,1724194240951,-500.0,0.00027611,2]
[335403205,1724194240961,-151.0,0.00027822,2]
[335403207,1724194240971,-500.0,0.00028398,2]
[335403209,1724194240980,-154.96,0.000286,31]
[335403211,1724194240990,-154.96,0.000286,31]
[335403213,1724194240999,-154.96,0.000286,31]
[335403215,1724194241010,-154.96,0.000286,31]
[335403217,1724194241021,-154.96,0.000286,31]
[335403219,1724194241030,-154.96,0.000286,31]
[335403221,1724194241042,-172.0,0.00028767,2]
[335403223,1724194241053,-287.15761358,0.00029196,2]
[335403226,1724194241063,-151.0,0.00029257,2]
[335403228,1724194241073,-160.0,0.000298,3]
[335403230,1724194241084,-407.65343021,0.0003,3]
[335403232,1724194241095,-255.27528526,0.0003,5]
[335403234,1724194241105,-437.0,0.0003,2]
[335403235,1724194241115,-184.76820392,0.00030593,2]
[335403238,1724194241126,-151.0,0.00030693,2]
[335403239,1724194241136,-154.96,0.000307,31]
[335403241,1724194241146,-154.96,0.000307,31]
[335403243,1724194241156,-154.96,0.000307,31]
[335403245,1724194241165,-154.96,0.000307,31]
[335403246,1724194241175,-154.96,0.000307,31]
[335403247,1724194241185,-154.96,0.000307,31]
[335403248,1724194241194,-300.0,0.00031,4]
[335403249,1724194241204,-300.0,0.00032,5]
[335403250,1724194241214,-151.0,0.00032128,3]
[335403251,1724194241223,-160.0,0.000324,4]
[335403252,1724194241233,-44274.64596355,0.0003269,3]
[335403285,1724194243522,-235.0,0.0003,2]
[335403286,1724194243532,-154.96,0.000327,31]
[335403287,1724194243542,-154.96,0.000327,31]
[335403288,1724194243552,-154.96,0.000327,31]
[335403289,1724194243562,-154.96,0.000327,31]
[335403290,1724194243571,-154.96,0.000327,31]
[335403291,1724194243580,-154.96,0.000327,31]
[335403292,1724194243589,-500.0,0.00032992,7]
[335403293,1724194243599,-300.0,0.00033,7]
[335403294,1724194243608,-235.0,0.00033,2]
[335403295,1724194243617,-235.0,0.00033,2]
[335403296,1724194243627,-1415.0,0.00033166,2]
[335403297,1724194243636,-150.074,0.00033166,2]
[335403298,1724194243647,-150.061,0.00033166,2]
[335403299,1724194243657,-150.446,0.00033166,2]
[335403300,1724194243666,-89.14803843,0.00033166,2]
[335403324,1724194246482,-335.08609429,0.00033166,2]
[335403325,1724194277249,25.775931,0.00017598,2]
[335403326,1724194277270,166.62316202,0.00017598,2]
[335403327,1724194277290,69.62420679,0.00017598,2]
[335403330,1724194294824,83.89790607,0.00017898,2]
[335403331,1724194294846,151.48342059,0.00017898,2]
[335403332,1724194294869,180.81932878,0.00017898,2]
[335403338,1724194679460,5372.0,0.0002031,120]
[335403339,1724195131156,-154.76012181,0.00013597,2]
[335403340,1724195131180,-309.14983794,0.00014245,2]
[335403341,1724195131203,-154.79103211,0.00014245,2]
[335403342,1724195131224,-156.81296962,0.00014247,2]
[335403344,1724195149093,-19.68237738,0.00014247,2]
[335403345,1724195149115,-210.70054968,0.00014519,2]
[335403346,1724195226089,-429.53094499,0.00013971,2]
[335403347,1724195226113,-172.56178168,0.00017432,2]
[335403348,1724195228444,-182.70234887,0.00017432,2]
[335403349,1724195235103,-360.42709905,0.00017432,2]
[335403350,1724195235124,-50.33560779,0.00017598,2]
[335403351,1724195242096,-114.59027727,0.00017598,2]
[335403352,1724195242119,-203.3024639,0.00017598,2]
[335403353,1724195242141,-2927.32711588,0.00017898,2]
[335403354,1724195246112,-1086.10307521,0.00017898,2]
[335403355,1724195254147,-5913.30614058,0.00017898,2]
[335403356,1724195254171,-173.0811658,0.00018013,2]
[335403357,1724195254193,-500.0,0.0001906,2]
[335403358,1724195254215,-165.098411,0.00019178,2]
[335403359,1724195254241,-167.280106,0.00019178,2]
[335403360,1724195254263,-251.0,0.00019178,2]
[335403361,1724195254284,-28.98794036,0.00019268,2]
[335403365,1724195347120,-250.35942,0.00014247,2]
[335403397,1724195432649,-4539.9864651,0.0001897,2]
[335403399,1724195432661,-471.01205964,0.00019268,2]
[335403401,1724195432671,-170.02363471,0.00019268,2]
[335403403,1724195432680,-557.0,0.00019287,2]
[335403405,1724195432689,-377.55483701,0.000199,2]
[335403407,1724195432700,-492.69254794,0.000199,2]
[335403452,1724195438575,-182.04108855,0.000199,2]
[335403454,1724195438585,-43495.4757914,0.0001999,2]
[335403456,1724195438595,-603.23,0.0001999,3]
[335403457,1724195438605,-301.62,0.0001999,3]
[335403458,1724195438615,-150.81,0.0001999,3]
[335403459,1724195438624,-452.43,0.0001999,3]
[335403460,1724195438634,-188.93065637,0.00019999,2]
[335403461,1724195438644,-176.190147,0.00019999,2]
[335403462,1724195438654,-287.15761358,0.0002,2]
[335403463,1724195438664,-226.11908431,0.0002,2]
[335403464,1724195438674,-126499.41497098,0.0002,2]
[335403465,1724195438683,-10511.84618177,0.0002,2]
[335403466,1724195438693,-156.6552172,0.0002,2]
[335403467,1724195438703,-150.112233,0.0002,2]
[335403469,1724195438712,-500.0,0.00020119,2]
[335403471,1724195438722,-500.0,0.00020119,2]
[335403473,1724195438731,-222.35704175,0.00020119,2]
[335403475,1724195438741,-500.0,0.00020119,2]
[335403477,1724195438751,-500.0,0.00020119,2]
[335403478,1724195438760,-217.71660268,0.00020119,2]
[335403479,1724195438771,-500.0,0.00020119,2]
[335403480,1724195438782,-500.0,0.00020119,2]
[335403481,1724195438796,-500.0,0.00020119,2]
[335403482,1724195438807,-500.0,0.00020119,2]
[335403483,1724195438818,-43495.4757914,0.0002012,2]
[335403484,1724195438829,-500.0,0.0002013,2]
[335403485,1724195438840,-154.74467129,0.0002031,2]
[335403486,1724195438851,-693.21429349,0.0002031,2]
[335403487,1724195438860,-953.45396956,0.00020417,2]
[335403488,1724195438871,-782.65797788,0.00020706,2]
[335403489,1724195438884,-250.35942,0.00020707,2]
[335403490,1724195438896,-557.0,0.00020715,2]
[335403491,1724195438907,-154.60575532,0.00020799,2]
[335403492,1724195438923,-150.0,0.00021,2]
[335403493,1724195438936,-309.21151064,0.00021113,2]
[335403494,1724195438946,-500.0,0.00021189,2]
[335403495,1724195438957,-500.0,0.00021332,2]
[335403496,1724195439089,-1206.46,0.0002136,3]
[335403497,1724195439105,-603.24,0.0002136,3]
[335403498,1724195439114,-301.62,0.0002136,3]
[335403499,1724195439124,-150.112233,0.000215,5]
[335403500,1724195439136,-160.83387276,0.00022,2]
[335403501,1724195439146,-3557.99428053,0.00022,30]
[335403502,1724195439158,-302.27461649,0.00022,2]
[335403503,1724195439169,-557.0,0.00022144,2]
[335403504,1724195439180,-151.0,0.00022144,2]
[335403505,1724195439192,-302.27461649,0.0002222,2]
[335403506,1724195439203,-192.3169147,0.00022249,2]
[335403507,1724195439213,-302.27461649,0.0002244,2]
[335403508,1724195439223,-500.0,0.00022581,2]
[335403509,1724195439233,-302.27461649,0.0002266,2]
[335403510,1724195439244,-500.0,0.00022725,2]
[335403511,1724195439255,-882.96114551,0.00022879,2]
[335403512,1724195439265,-302.27461649,0.0002288,2]
[335403513,1724195439275,-150.112233,0.00023,4]
[335403514,1724195439284,-453.41192473,0.000231,4]
[335403515,1724195439294,-453.41192473,0.0002332,4]
[335403516,1724195439303,-10342.93698711,0.00023355,2]
[335403517,1724195439313,-453.41192473,0.0002354,4]
[335403518,1724195439322,-500.0,0.00023542,2]
[335403519,1724195439331,-557.0,0.00023572,2]
[335403520,1724195439341,-151.0,0.00023572,2]
[335403521,1724195439351,-1052.28847348,0.00023625,2]
[335403522,1724195439361,-453.41192473,0.0002376,4]
[335403523,1724195439370,-500.0,0.00023882,2]
[335403524,1724195439380,-453.41192473,0.0002398,4]
[335403525,1724195439390,-500.0,0.00024207,2]
[335403526,1724195439400,-277.6716568,0.00024485,2]
[335403527,1724195439409,-435.0,0.00024496,2]
[335403528,1724195439419,-154.71377951,0.00024496,2]
[335403529,1724195439429,-150.112233,0.000245,5]
[335403530,1724195439438,-200.0,0.00024658,15]
[335403531,1724195439449,-500.0,0.00024815,2]
[335403532,1724195439459,-500.0,0.00024971,2]
[335403533,1724195439469,-154.60575532,0.00025,2]
[335403534,1724195439479,-258.18032213,0.00025,120]
[335403535,1724195439488,-308.19214429,0.00025,2]
[335403536,1724195439498,-155.95117291,0.00025,2]
[335403537,1724195439508,-277.92028119,0.00025,30]
[335403538,1724195439518,-557.0,0.00025,2]
[335403539,1724195439528,-151.0,0.00025,2]
[335403540,1724195439538,-503.79102748,0.00025,2]
[335403541,1724195439548,-503.79102748,0.0002525,2]
[335403542,1724195439558,-503.79102748,0.000255,2]
[335403543,1724195439567,-3135.64803338,0.00025607,30]
[335403544,1724195439578,-503.79102748,0.0002575,2]
[335403545,1724195439588,-150.112233,0.00026,8]
[335403546,1724195439598,-503.79102748,0.00026,2]
[335403547,1724195439608,-500.0,0.00026202,2]
[335403548,1724195439618,-503.79102748,0.0002625,2]
[335403549,1724195439628,-557.0,0.00026429,2]
[335403550,1724195439638,-151.0,0.00026429,2]
[335403551,1724195439648,-503.79102748,0.000265,2]
[335403552,1724195439658,-1179.26,0.000266,31]
[335403553,1724195439667,-1179.26,0.000266,31]
[335403554,1724195439677,-1179.26,0.000266,31]
[335403555,1724195439686,-1179.26,0.000266,31]
[335403556,1724195439696,-1179.26,0.000266,31]
[335403557,1724195439706,-1179.26,0.000266,31]
[335403558,1724195439716,-1179.26,0.000266,31]
[335403559,1724195439726,-1179.26,0.000266,31]
[335403560,1724195439735,-1179.26,0.000266,31]
[335403561,1724195439746,-1179.26,0.000266,31]
[335403562,1724195439756,-1179.26,0.000266,31]
[335403563,1724195439767,-1179.26,0.000266,31]
[335403564,1724195439778,-503.79102748,0.0002675,2]
[335403565,1724195439788,-43495.4757914,0.00026944,3]
[335403566,1724195439798,-500.0,0.00026954,2]
[335403567,1724195439810,-165.0,0.00027,2]
[335403568,1724195439820,-503.79102748,0.00027,2]
[335403569,1724195439830,-199.0,0.00027,2]
[335403570,1724195439840,-500.0,0.00027043,2]
[335403571,1724195439850,-300.0,0.000271,13]
[335403572,1724195439859,-250.35942,0.00027167,2]
[335403573,1724195439869,-503.79102747,0.0002725,2]
[335403574,1724195439879,-1052.28847348,0.0002735,2]
[335403575,1724195439892,-500.0,0.00027391,2]
[335403576,1724195439903,-150.112233,0.000275,8]
[335403577,1724195439913,-500.0,0.00027796,2]
[335403578,1724195439923,-171.493407,0.00027811,2]
[335403579,1724195439932,-168.584173,0.00027811,2]
[335403580,1724195439942,-166.332644,0.00027811,2]
[335403581,1724195439951,-171.493404,0.00027811,2]
[335403582,1724195439964,-168.584172,0.00027811,2]
[335403583,1724195439974,-166.332644,0.00027811,2]
[335403584,1724195439983,-174.492612,0.00027811,2]
[335403585,1724195439993,-171.493404,0.00027811,2]
[335403586,1724195440003,-557.0,0.00027857,2]
[335403587,1724195440013,-151.0,0.00027857,2]
[335403588,1724195440023,-500.0,0.00027922,2]
[335403589,1724195440033,-339.14513774,0.00028,30]
[335403590,1724195440043,-1179.26,0.000286,31]
[335403591,1724195440052,-1179.26,0.000286,31]
[335403592,1724195440063,-1179.26,0.000286,31]
[335403593,1724195440073,-1179.26,0.000286,31]
[335403594,1724195440085,-1179.26,0.000286,31]
[335403595,1724195440096,-1179.26,0.000286,31]
[335403596,1724195440105,-1179.26,0.000286,31]
[335403597,1724195440115,-1179.26,0.000286,31]
[335403598,1724195440125,-1179.26,0.000286,31]
[335403599,1724195440136,-1179.26,0.000286,31]
[335403600,1724195440146,-1179.26,0.000286,31]
[335403601,1724195440158,-1179.26,0.000286,31]
[335403602,1724195440168,-1179.26,0.000286,31]
[335403603,1724195440178,-1179.26,0.000286,31]
[335403604,1724195440188,-1179.26,0.000286,31]
[335403605,1724195440199,-1179.26,0.000286,31]
[335403607,1724195440209,-1179.26,0.000286,31]
[335403608,1724195440219,-1179.26,0.000286,31]
[335403609,1724195440231,-1179.26,0.000286,31]
[335403610,1724195440240,-1179.26,0.000286,31]
[335403612,1724195440250,-1179.26,0.000286,31]
[335403614,1724195440260,-1179.26,0.000286,31]
[335403615,1724195440270,-1179.26,0.000286,31]
[335403616,1724195440280,-1179.26,0.000286,31]
[335403617,1724195440290,-165.0,0.00028767,2]
[335403618,1724195440300,-150.112233,0.00029,10]
[335403619,1724195440310,-225.0,0.00029,2]
[335403620,1724195440320,-166.332644,0.00029202,2]
[335403621,1724195440330,-171.493404,0.00029202,2]
[335403622,1724195440340,-166.332644,0.00029202,2]
[335403623,1724195440350,-557.0,0.00029285,2]
[335403624,1724195440360,-151.0,0.00029285,2]
[335403625,1724195440370,-500.0,0.00029306,2]
[335403626,1724195440380,-153.0,0.00029509,2]
[335403627,1724195440389,-153.0,0.00029509,2]
[335403628,1724195440399,-500.0,0.00029758,2]
[335403629,1724195440409,-255.27528526,0.0003,5]
[335403630,1724195440419,-151.0,0.0003,120]
[335403632,1724195440429,-630.0,0.0003,120]
[335403634,1724195440439,-407.65343021,0.0003,3]
[335403636,1724195440449,-300.0,0.0003,2]
[335403638,1724195440460,-274.0,0.0003,2]
[335403640,1724195440470,-500.0,0.00030165,7]
[335403642,1724195440480,-500.0,0.00030356,7]
[335403644,1724195440489,-150.112233,0.000304,10]
[335403646,1724195440500,-150.112237,0.000305,6]
[335403648,1724195440510,-500.0,0.00030606,7]
[335403651,1724195440520,-43495.4757914,0.0003069,4]
[335403653,1724195440531,-1179.26,0.000307,31]
[335403655,1724195440541,-1179.26,0.000307,31]
[335403657,1724195440551,-1179.26,0.000307,31]
[335403659,1724195440562,-1179.26,0.000307,31]
[335403661,1724195440572,-1179.26,0.000307,31]
[335403663,1724195440582,-1179.26,0.000307,31]
[335403665,1724195440592,-1179.26,0.000307,31]
[335403667,1724195440602,-1179.26,0.000307,31]
[335403669,1724195440612,-1179.26,0.000307,31]
[335403671,1724195440623,-1179.26,0.000307,31]
[335403681,1724195440633,-1179.26,0.000307,31]